[Event "Titled Tuesday Blitz June 21 Late 2022"]
[White "Pakleza, Zbigniew"]
[Black "Romanchuk, Viktor"]
[WhiteFideId "1119290"]
[BlackFideId "14109271"]
[WhiteElo "2467"]
[BlackElo "2242"]
[Result "1-0"]
[Round "07"]
[TimeControl "180+1"]
[Date "2022.06.21"]
[WhiteClock "0:00:09"]
[BlackClock "0:00:13"]

1. d4 {[%clk 0:03:00]}  d5 {[%clk 0:02:57]} 2. Bf4 {[%clk 0:03:00]}  Nf6 {[%clk 0:02:57]} 3. e3 {[%clk 0:03:01]}  c5 {[%clk 0:02:56]} 4. c3 {[%clk 0:03:01]}  Nc6 {[%clk 0:02:56]} 5. Nd2 {[%clk 0:03:02]}  cxd4 {[%clk 0:02:56]} 6. cxd4 {[%clk 0:03:01]}  a6 {[%clk 0:02:47]} 7. Bd3 {[%clk 0:02:55]}  Bg4 {[%clk 0:02:46]} 8. Ngf3 {[%clk 0:02:53]}  e6 {[%clk 0:02:45]} 9. O-O {[%clk 0:02:30]}  Bd6 {[%clk 0:02:32]} 10. Bxd6 {[%clk 0:02:30]}  Qxd6 {[%clk 0:02:32]} 11. h3 {[%clk 0:02:30]}  Bxf3 {[%clk 0:02:31]} 12. Nxf3 {[%clk 0:02:28]}  O-O {[%clk 0:02:30]} 13. Qb3 {[%clk 0:02:28]}  Na5 {[%clk 0:02:18]} 14. Qa4 {[%clk 0:02:19]}  Nc6 {[%clk 0:02:15]} 15. Rfc1 {[%clk 0:02:15]}  Rfc8 {[%clk 0:02:14]} 16. Rc3 {[%clk 0:02:12]}  Rc7 {[%clk 0:02:14]} 17. Rac1 {[%clk 0:02:10]}  Rac8 {[%clk 0:02:14]} 18. a3 {[%clk 0:02:03]}  g6 {[%clk 0:02:01]} 19. Qc2 {[%clk 0:01:59]}  Ne8 {[%clk 0:01:58]} 20. Nd2 {[%clk 0:01:43]}  Nb8 {[%clk 0:01:45]} 21. Rxc7 {[%clk 0:01:31]}  Rxc7 {[%clk 0:01:39]} 22. Qd1 {[%clk 0:01:31]}  Rxc1 {[%clk 0:01:39]} 23. Qxc1 {[%clk 0:01:32]}  Qc7 {[%clk 0:01:38]} 24. Qd1 {[%clk 0:01:28]}  Nd6 {[%clk 0:01:32]} 25. h4 {[%clk 0:01:16]}  Nd7 {[%clk 0:01:25]} 26. Nf3 {[%clk 0:01:10]}  Kg7 {[%clk 0:01:18]} 27. g3 {[%clk 0:01:09]}  Qc6 {[%clk 0:00:52]} 28. Kg2 {[%clk 0:01:05]}  Qc7 {[%clk 0:00:49]} 29. h5 {[%clk 0:01:02]}  Nf6 {[%clk 0:00:48]} 30. hxg6 {[%clk 0:01:01]}  hxg6 {[%clk 0:00:48]} 31. Qb3 {[%clk 0:00:52]}  Nd7 {[%clk 0:00:37]} 32. Qb4 {[%clk 0:00:44]}  Nc8 {[%clk 0:00:31]} 33. g4 {[%clk 0:00:35]}  Nd6 {[%clk 0:00:28]} 34. g5 {[%clk 0:00:34]}  Nc4 {[%clk 0:00:28]} 35. Bxc4 {[%clk 0:00:24]}  dxc4 {[%clk 0:00:27]} 36. Qe7 {[%clk 0:00:22]}  Qc6 {[%clk 0:00:27]} 37. e4 {[%clk 0:00:19]}  b5 {[%clk 0:00:24]} 38. Kg3 {[%clk 0:00:14]}  a5 {[%clk 0:00:22]} 39. Kf4 {[%clk 0:00:13]}  Qc7+ {[%clk 0:00:19]} 40. Ne5 {[%clk 0:00:11]}  Qb6 {[%clk 0:00:13]} 41. Qxf7+ {[%clk 0:00:09]} 1-0


[Site "https://www.chess.com"]

[Event "Titled Tuesday Blitz June 21 Late 2022"]
[White "Pappelis, Dimitrios"]
[Black "Kanyamarala, Tarun"]
[WhiteFideId "4215281"]
[BlackFideId "45004714"]
[WhiteElo "1998"]
[BlackElo "2219"]
[Result "0-1"]
[Round "07"]
[TimeControl "180+1"]
[Date "2022.06.22"]
[WhiteClock "0:00:07"]
[BlackClock "0:00:05"]

1. d4 {[%clk 0:02:56]}  d5 {[%clk 0:02:59]} 2. c4 {[%clk 0:02:56]}  c6 {[%clk 0:02:59]} 3. cxd5 {[%clk 0:02:56]}  cxd5 {[%clk 0:03:00]} 4. Bf4 {[%clk 0:02:57]}  Nc6 {[%clk 0:02:57]} 5. e3 {[%clk 0:02:57]}  Nf6 {[%clk 0:02:57]} 6. Nc3 {[%clk 0:02:57]}  Bg4 {[%clk 0:02:56]} 7. f3 {[%clk 0:02:53]}  Bd7 {[%clk 0:02:55]} 8. Bd3 {[%clk 0:02:52]}  e6 {[%clk 0:02:48]} 9. Nge2 {[%clk 0:02:50]}  Nh5 {[%clk 0:02:47]} 10. O-O {[%clk 0:02:43]}  Nxf4 {[%clk 0:02:47]} 11. Nxf4 {[%clk 0:02:44]}  Bd6 {[%clk 0:02:45]} 12. Rc1 {[%clk 0:02:38]}  O-O {[%clk 0:02:29]} 13. Nfe2 {[%clk 0:02:26]}  Rc8 {[%clk 0:01:34]} 14. e4 {[%clk 0:02:26]}  dxe4 {[%clk 0:01:17]} 15. fxe4 {[%clk 0:02:23]}  Qh4 {[%clk 0:01:00]} 16. e5 {[%clk 0:02:13]}  Bb8 {[%clk 0:00:57]} 17. Rf4 {[%clk 0:02:10]}  Qg5 {[%clk 0:00:57]} 18. Ne4 {[%clk 0:02:05]}  Qe7 {[%clk 0:00:53]} 19. N2g3 {[%clk 0:01:51]}  Nxd4 {[%clk 0:00:34]} 20. Rxc8 {[%clk 0:01:49]}  Rxc8 {[%clk 0:00:33]} 21. Qh5 {[%clk 0:01:37]}  Nf5 {[%clk 0:00:25]} 22. Nf6+ {[%clk 0:01:08]}  Qxf6 {[%clk 0:00:13]} 23. exf6 {[%clk 0:01:05]}  Bxf4 {[%clk 0:00:13]} 24. Nxf5 {[%clk 0:01:01]}  exf5 {[%clk 0:00:12]} 25. g3 {[%clk 0:00:45]}  Be3+ {[%clk 0:00:12]} 26. Kg2 {[%clk 0:00:44]}  Bc6+ {[%clk 0:00:12]} 27. Kh3 {[%clk 0:00:44]}  g6 {[%clk 0:00:12]} 28. Qe2 {[%clk 0:00:41]}  Re8 {[%clk 0:00:11]} 29. Bc4 {[%clk 0:00:39]}  f4 {[%clk 0:00:10]} 30. gxf4 {[%clk 0:00:37]}  Re4 {[%clk 0:00:08]} 31. Qd3 {[%clk 0:00:30]}  Bd4 {[%clk 0:00:08]} 32. Kg4 {[%clk 0:00:18]}  Bxf6 {[%clk 0:00:08]} 33. Qb3 {[%clk 0:00:15]}  Kg7 {[%clk 0:00:05]} 34. Bxf7 {[%clk 0:00:15]}  Bd4 {[%clk 0:00:03]} 35. Bd5 {[%clk 0:00:09]}  h5+ {[%clk 0:00:03]} 36. Kh4 {[%clk 0:00:09]}  Rxf4+ {[%clk 0:00:03]} 37. Kg3 {[%clk 0:00:09]}  Be5 {[%clk 0:00:03]} 38. Bxc6 {[%clk 0:00:08]}  Rb4+ {[%clk 0:00:04]} 39. Kf2 {[%clk 0:00:07]}  Rxb3 {[%clk 0:00:04]} 40. axb3 {[%clk 0:00:08]}  bxc6 {[%clk 0:00:04]} 41. Ke3 {[%clk 0:00:06]}  Bxb2 {[%clk 0:00:04]} 42. Ke4 {[%clk 0:00:07]}  Bf6 {[%clk 0:00:05]} 0-1


[Site "https://www.chess.com"]

[Event "Titled Tuesday Blitz June 21 Late 2022"]
[White "Paravyan, David"]
[Black "Suleymanli, Aydin"]
[WhiteFideId "4194985"]
[BlackFideId "13413937"]
[WhiteElo "2569"]
[BlackElo "2481"]
[Result "1-0"]
[Round "07"]
[TimeControl "180+1"]
[Date "2022.06.21"]
[WhiteClock "0:02:11"]
[BlackClock "0:00:10"]

1. e4 {[%clk 0:03:00]}  c5 {[%clk 0:02:55]} 2. Nf3 {[%clk 0:03:01]}  e6 {[%clk 0:02:52]} 3. d4 {[%clk 0:03:01]}  cxd4 {[%clk 0:02:52]} 4. Nxd4 {[%clk 0:03:02]}  Nc6 {[%clk 0:02:52]} 5. Nc3 {[%clk 0:03:01]}  Qc7 {[%clk 0:02:52]} 6. Bg5 {[%clk 0:02:58]}  Nf6 {[%clk 0:02:45]} 7. Be2 {[%clk 0:02:57]}  a6 {[%clk 0:02:37]} 8. Nxc6 {[%clk 0:02:57]}  dxc6 {[%clk 0:02:34]} 9. Qd3 {[%clk 0:02:56]}  e5 {[%clk 0:02:21]} 10. O-O-O {[%clk 0:02:55]}  Be6 {[%clk 0:02:20]} 11. Rhf1 {[%clk 0:02:44]}  Nd7 {[%clk 0:02:11]} 12. f4 {[%clk 0:02:29]}  f6 {[%clk 0:00:52]} 13. Bh5+ {[%clk 0:02:29]}  Ke7 {[%clk 0:00:33]} 14. f5 {[%clk 0:02:26]}  Bg8 {[%clk 0:00:18]} 15. Be3 {[%clk 0:02:11]}  Rd8 {[%clk 0:00:10]} 16. Na4 {[%clk 0:02:11]} 1-0


[Site "https://www.chess.com"]

[Event "Titled Tuesday Blitz June 21 Late 2022"]
[White "Pinheiro, Iung Alicio de O."]
[Black "Pesotskiy, Mikhail"]
[WhiteFideId "2104350"]
[BlackFideId "34164453"]
[WhiteElo "2283"]
[BlackElo "2010"]
[Result "1-0"]
[Round "07"]
[TimeControl "180+1"]
[Date "2022.06.22"]
[WhiteClock "0:01:09"]
[BlackClock "0:01:13"]

1. e4 {[%clk 0:02:59]}  e6 {[%clk 0:02:56]} 2. d4 {[%clk 0:02:59]}  d5 {[%clk 0:02:55]} 3. e5 {[%clk 0:02:59]}  c5 {[%clk 0:02:51]} 4. c3 {[%clk 0:02:59]}  Qa5 {[%clk 0:02:50]} 5. a3 {[%clk 0:02:35]}  Bd7 {[%clk 0:02:25]} 6. Nf3 {[%clk 0:02:04]}  Ne7 {[%clk 0:02:06]} 7. b4 {[%clk 0:01:36]}  cxb4 {[%clk 0:02:04]} 8. cxb4 {[%clk 0:01:37]}  Qd8 {[%clk 0:02:05]} 9. Bd3 {[%clk 0:01:36]}  Nbc6 {[%clk 0:02:04]} 10. O-O {[%clk 0:01:36]}  Ng6 {[%clk 0:02:02]} 11. g3 {[%clk 0:01:36]}  Nge7 {[%clk 0:01:59]} 12. Nc3 {[%clk 0:01:34]}  Rc8 {[%clk 0:01:59]} 13. Nb5 {[%clk 0:01:32]}  Nf5 {[%clk 0:01:59]} 14. Re1 {[%clk 0:01:28]}  a6 {[%clk 0:01:40]} 15. Bxf5 {[%clk 0:01:27]}  exf5 {[%clk 0:01:34]} 16. Nd6+ {[%clk 0:01:22]}  Bxd6 {[%clk 0:01:34]} 17. exd6+ {[%clk 0:01:23]}  Be6 {[%clk 0:01:35]} 18. Bf4 {[%clk 0:01:21]}  O-O {[%clk 0:01:34]} 19. h4 {[%clk 0:01:22]}  h6 {[%clk 0:01:22]} 20. Qd2 {[%clk 0:01:21]}  Qf6 {[%clk 0:01:20]} 21. Kg2 {[%clk 0:01:16]}  Rfd8 {[%clk 0:01:16]} 22. h5 {[%clk 0:01:10]}  Na7 {[%clk 0:01:13]} 23. Be5 {[%clk 0:01:09]} 1-0


[Site "https://www.chess.com"]

[Event "Titled Tuesday Blitz June 21 Late 2022"]
[White "Rama, Tejas"]
[Black "Gimenez Aguirre, Alejo Ismael"]
[WhiteFideId "30907381"]
[BlackFideId "32041667"]
[WhiteElo "1430"]
[BlackElo "2031"]
[Result "0-1"]
[Round "07"]
[TimeControl "180+1"]
[Date "2022.06.22"]
[WhiteClock "0:00:02"]
[BlackClock "0:01:21"]

1. d4 {[%clk 0:02:58]}  Nf6 {[%clk 0:02:58]} 2. c4 {[%clk 0:02:55]}  e6 {[%clk 0:02:59]} 3. Nf3 {[%clk 0:02:55]}  c5 {[%clk 0:03:00]} 4. d5 {[%clk 0:02:53]}  exd5 {[%clk 0:03:00]} 5. cxd5 {[%clk 0:02:52]}  d6 {[%clk 0:03:01]} 6. Nc3 {[%clk 0:02:51]}  g6 {[%clk 0:03:02]} 7. Nd2 {[%clk 0:02:51]}  Bg7 {[%clk 0:03:03]} 8. e4 {[%clk 0:02:51]}  O-O {[%clk 0:03:04]} 9. Be2 {[%clk 0:02:51]}  Re8 {[%clk 0:03:04]} 10. O-O {[%clk 0:02:49]}  a6 {[%clk 0:03:04]} 11. a4 {[%clk 0:02:48]}  Nbd7 {[%clk 0:03:05]} 12. Re1 {[%clk 0:02:47]}  Qc7 {[%clk 0:03:06]} 13. Bf1 {[%clk 0:02:42]}  b6 {[%clk 0:03:06]} 14. Nc4 {[%clk 0:02:37]}  Ne5 {[%clk 0:03:02]} 15. Ne3 {[%clk 0:02:31]}  Rb8 {[%clk 0:03:00]} 16. h3 {[%clk 0:02:20]}  g5 {[%clk 0:02:53]} 17. Nc2 {[%clk 0:02:02]}  h6 {[%clk 0:02:53]} 18. f4 {[%clk 0:01:59]}  gxf4 {[%clk 0:02:51]} 19. Bxf4 {[%clk 0:02:00]}  Kh8 {[%clk 0:02:47]} 20. Qd2 {[%clk 0:01:52]}  Kh7 {[%clk 0:02:37]} 21. Kh1 {[%clk 0:01:26]}  Nh5 {[%clk 0:02:33]} 22. Bh2 {[%clk 0:01:23]}  Rg8 {[%clk 0:02:33]} 23. Be2 {[%clk 0:01:17]}  Nf6 {[%clk 0:02:31]} 24. Ne3 {[%clk 0:01:11]}  Bh8 {[%clk 0:02:26]} 25. Nc4 {[%clk 0:01:02]}  Nxc4 {[%clk 0:02:24]} 26. Bxc4 {[%clk 0:01:03]}  Nd7 {[%clk 0:02:21]} 27. e5 {[%clk 0:00:37]}  Nxe5 {[%clk 0:02:19]} 28. Qc2+ {[%clk 0:00:33]}  f5 {[%clk 0:02:18]} 29. Bf1 {[%clk 0:00:29]}  Qf7 {[%clk 0:02:18]} 30. Ra3 {[%clk 0:00:25]}  Bf6 {[%clk 0:02:14]} 31. Ne2 {[%clk 0:00:24]}  b5 {[%clk 0:02:13]} 32. axb5 {[%clk 0:00:23]}  axb5 {[%clk 0:02:14]} 33. Nf4 {[%clk 0:00:23]}  b4 {[%clk 0:02:12]} 34. Rae3 {[%clk 0:00:21]}  Bd7 {[%clk 0:02:11]} 35. Be2 {[%clk 0:00:20]}  Rg5 {[%clk 0:02:08]} 36. h4 {[%clk 0:00:16]}  Rg7 {[%clk 0:02:00]} 37. Nh5 {[%clk 0:00:14]}  Rg6 {[%clk 0:01:51]} 38. Nf4 {[%clk 0:00:10]}  Rg7 {[%clk 0:01:51]} 39. h5 {[%clk 0:00:11]}  Rbg8 {[%clk 0:01:49]} 40. Rf1 {[%clk 0:00:08]}  Rg5 {[%clk 0:01:47]} 41. Nh3 {[%clk 0:00:05]}  Rxg2 {[%clk 0:01:40]} 42. Qb1 {[%clk 0:00:05]}  Bc8 {[%clk 0:01:32]} 43. Nf4 {[%clk 0:00:05]}  R2g5 {[%clk 0:01:31]} 44. Rg1 {[%clk 0:00:03]}  Bb7 {[%clk 0:01:30]} 45. Qd1 {[%clk 0:00:02]}  Rxg1+ {[%clk 0:01:26]} 46. Bxg1 {[%clk 0:00:03]}  Bg5 {[%clk 0:01:25]} 47. Bh2 {[%clk 0:00:03]}  Qf6 {[%clk 0:01:24]} 48. Rg3 {[%clk 0:00:02]}  Bxf4 {[%clk 0:01:23]} 49. Rxg8 {[%clk 0:00:02]}  Kxg8 {[%clk 0:01:24]} 50. Bxf4 {[%clk 0:00:03]}  Qh4+ {[%clk 0:01:24]} 51. Bh2 {[%clk 0:00:03]}  Ng4 {[%clk 0:01:24]} 52. Qg1 {[%clk 0:00:02]}  Bxd5+ {[%clk 0:01:21]} 0-1


[Site "https://www.chess.com"]

[Event "Titled Tuesday Blitz June 21 Late 2022"]
[White "Rios Escobar, Adan"]
[Black "Arnold, Ken"]
[WhiteFideId "3403645"]
[BlackFideId "2056836"]
[WhiteElo "2441"]
[BlackElo "2334"]
[Result "1-0"]
[Round "07"]
[TimeControl "180+1"]
[Date "2022.06.22"]
[WhiteClock "0:00:05"]
[BlackClock "0:00:15"]

1. d4 {[%clk 0:02:56]}  Nf6 {[%clk 0:02:56]} 2. g3 {[%clk 0:02:54]}  d5 {[%clk 0:02:56]} 3. Nf3 {[%clk 0:02:51]}  c6 {[%clk 0:02:56]} 4. c4 {[%clk 0:02:50]}  e6 {[%clk 0:02:55]} 5. Bg2 {[%clk 0:02:49]}  Bd6 {[%clk 0:02:55]} 6. O-O {[%clk 0:02:49]}  O-O {[%clk 0:02:56]} 7. Nc3 {[%clk 0:02:50]}  Re8 {[%clk 0:02:56]} 8. Nd2 {[%clk 0:02:51]}  Nbd7 {[%clk 0:02:56]} 9. e4 {[%clk 0:02:51]}  dxe4 {[%clk 0:02:56]} 10. Ndxe4 {[%clk 0:02:52]}  Nxe4 {[%clk 0:02:55]} 11. Nxe4 {[%clk 0:02:53]}  Nf6 {[%clk 0:02:54]} 12. Nxd6 {[%clk 0:02:47]}  Qxd6 {[%clk 0:02:54]} 13. Bf4 {[%clk 0:02:47]}  Qb4 {[%clk 0:02:53]} 14. Qc2 {[%clk 0:02:43]}  Rd8 {[%clk 0:02:50]} 15. Rfd1 {[%clk 0:02:32]}  h6 {[%clk 0:02:47]} 16. a3 {[%clk 0:02:26]}  Qe7 {[%clk 0:02:36]} 17. b4 {[%clk 0:02:21]}  Bd7 {[%clk 0:02:34]} 18. Rac1 {[%clk 0:02:13]}  Rac8 {[%clk 0:02:34]} 19. h4 {[%clk 0:02:09]}  a6 {[%clk 0:02:28]} 20. Qb3 {[%clk 0:02:06]}  Be8 {[%clk 0:02:26]} 21. Bf3 {[%clk 0:02:02]}  Nd7 {[%clk 0:02:21]} 22. a4 {[%clk 0:01:54]}  e5 {[%clk 0:02:13]} 23. Re1 {[%clk 0:01:51]}  f6 {[%clk 0:01:54]} 24. Qb2 {[%clk 0:01:37]}  g5 {[%clk 0:01:51]} 25. hxg5 {[%clk 0:01:28]}  hxg5 {[%clk 0:01:50]} 26. Bd2 {[%clk 0:01:14]}  Bf7 {[%clk 0:01:39]} 27. Kg2 {[%clk 0:00:42]}  Qf8 {[%clk 0:00:54]} 28. dxe5 {[%clk 0:00:23]}  Nxe5 {[%clk 0:00:53]} 29. Rxe5 {[%clk 0:00:23]}  fxe5 {[%clk 0:00:49]} 30. Bxg5 {[%clk 0:00:23]}  Rd3 {[%clk 0:00:48]} 31. Be4 {[%clk 0:00:15]}  Rd4 {[%clk 0:00:48]} 32. Qc2 {[%clk 0:00:10]}  Qg7 {[%clk 0:00:40]} 33. Be3 {[%clk 0:00:10]}  Rxc4 {[%clk 0:00:40]} 34. Qb1 {[%clk 0:00:07]}  Rxc1 {[%clk 0:00:39]} 35. Qxc1 {[%clk 0:00:08]}  Rd8 {[%clk 0:00:37]} 36. Qc5 {[%clk 0:00:06]}  Bd5 {[%clk 0:00:35]} 37. Qb6 {[%clk 0:00:05]}  Bxe4+ {[%clk 0:00:35]} 38. f3 {[%clk 0:00:05]}  Bxf3+ {[%clk 0:00:32]} 39. Kxf3 {[%clk 0:00:05]}  Rf8+ {[%clk 0:00:32]} 40. Kg2 {[%clk 0:00:06]}  Qf7 {[%clk 0:00:31]} 41. Bf2 {[%clk 0:00:04]}  Qf3+ {[%clk 0:00:28]} 42. Kg1 {[%clk 0:00:05]}  e4 {[%clk 0:00:20]} 43. Qc5 {[%clk 0:00:04]}  Qxf2+ {[%clk 0:00:17]} 44. Qxf2 {[%clk 0:00:04]}  Rxf2 {[%clk 0:00:18]} 45. Kxf2 {[%clk 0:00:04]}  b6 {[%clk 0:00:17]} 46. Ke3 {[%clk 0:00:05]}  a5 {[%clk 0:00:17]} 47. bxa5 {[%clk 0:00:04]}  bxa5 {[%clk 0:00:17]} 48. Kxe4 {[%clk 0:00:05]}  Kf7 {[%clk 0:00:18]} 49. Kd4 {[%clk 0:00:05]}  Ke6 {[%clk 0:00:15]} 50. Kc5 {[%clk 0:00:05]} 1-0


[Site "https://www.chess.com"]

[Event "Titled Tuesday Blitz June 21 Late 2022"]
[White "Sernecki, Franciszek"]
[Black "Shohat, Yotam"]
[WhiteFideId "1169297"]
[BlackFideId "2813955"]
[WhiteElo "2168"]
[BlackElo "2119"]
[Result "0-1"]
[Round "07"]
[TimeControl "180+1"]
[Date "2022.06.22"]
[WhiteClock "0:00:59"]
[BlackClock "0:01:54"]

1. d4 {[%clk 0:03:00]}  Nf6 {[%clk 0:02:58]} 2. Nf3 {[%clk 0:02:58]}  c5 {[%clk 0:02:58]} 3. d5 {[%clk 0:02:57]}  b5 {[%clk 0:02:58]} 4. a4 {[%clk 0:02:37]}  b4 {[%clk 0:02:55]} 5. b3 {[%clk 0:02:34]}  e6 {[%clk 0:02:44]} 6. dxe6 {[%clk 0:02:32]}  fxe6 {[%clk 0:02:42]} 7. Bb2 {[%clk 0:02:32]}  Be7 {[%clk 0:02:41]} 8. g3 {[%clk 0:02:29]}  O-O {[%clk 0:02:41]} 9. Bg2 {[%clk 0:02:30]}  Bb7 {[%clk 0:02:40]} 10. O-O {[%clk 0:02:30]}  d6 {[%clk 0:02:31]} 11. Nbd2 {[%clk 0:02:22]}  h6 {[%clk 0:02:23]} 12. Nc4 {[%clk 0:02:17]}  Qc7 {[%clk 0:02:17]} 13. Qd3 {[%clk 0:01:39]}  Nbd7 {[%clk 0:02:01]} 14. Qg6 {[%clk 0:01:36]}  Be4 {[%clk 0:01:55]} 15. Bxf6 {[%clk 0:00:59]}  Nxf6 {[%clk 0:01:54]} 0-1


[Site "https://www.chess.com"]

[Event "Titled Tuesday Blitz June 21 Late 2022"]
[White "Sibilio, Mario"]
[Black "Lopez Perdomo, Juan David"]
[WhiteFideId "800422"]
[BlackFideId "4405137"]
[WhiteElo "2296"]
[BlackElo "1997"]
[Result "0-1"]
[Round "07"]
[TimeControl "180+1"]
[Date "2022.06.22"]
[WhiteClock "0:00:02"]
[BlackClock "0:00:34"]

1. e4 {[%clk 0:03:00]}  e6 {[%clk 0:02:59]} 2. d4 {[%clk 0:02:59]}  d5 {[%clk 0:02:59]} 3. e5 {[%clk 0:02:59]}  c5 {[%clk 0:02:59]} 4. c3 {[%clk 0:02:59]}  Nc6 {[%clk 0:02:58]} 5. Nf3 {[%clk 0:02:59]}  f6 {[%clk 0:02:59]} 6. Bb5 {[%clk 0:02:49]}  Bd7 {[%clk 0:02:58]} 7. Qe2 {[%clk 0:02:43]}  fxe5 {[%clk 0:02:50]} 8. Bxc6 {[%clk 0:02:39]}  bxc6 {[%clk 0:02:42]} 9. Nxe5 {[%clk 0:02:31]}  Nf6 {[%clk 0:02:43]} 10. dxc5 {[%clk 0:02:18]}  Bxc5 {[%clk 0:02:42]} 11. Nd2 {[%clk 0:02:17]}  O-O {[%clk 0:02:41]} 12. O-O {[%clk 0:02:17]}  Qc7 {[%clk 0:02:34]} 13. Ndf3 {[%clk 0:02:07]}  Ne4 {[%clk 0:02:33]} 14. Nd3 {[%clk 0:01:59]}  Bd6 {[%clk 0:02:32]} 15. h3 {[%clk 0:01:55]}  h6 {[%clk 0:02:17]} 16. Nd2 {[%clk 0:01:43]}  Bh2+ {[%clk 0:02:05]} 17. Kh1 {[%clk 0:01:42]}  Rxf2 {[%clk 0:02:06]} 18. Qxf2 {[%clk 0:00:47]}  Nxf2+ {[%clk 0:01:54]} 19. Rxf2 {[%clk 0:00:45]}  Bd6 {[%clk 0:01:45]} 20. b4 {[%clk 0:00:34]}  e5 {[%clk 0:01:45]} 21. Nb3 {[%clk 0:00:32]}  e4 {[%clk 0:01:44]} 22. Ndc5 {[%clk 0:00:32]}  Bg3 {[%clk 0:01:33]} 23. Rf1 {[%clk 0:00:30]}  Bc8 {[%clk 0:01:07]} 24. Be3 {[%clk 0:00:22]}  Qe5 {[%clk 0:00:59]} 25. Bf2 {[%clk 0:00:08]}  Bf4 {[%clk 0:00:52]} 26. Nd4 {[%clk 0:00:06]}  Qh5 {[%clk 0:00:47]} 27. Nde6 {[%clk 0:00:05]}  Bd6 {[%clk 0:00:40]} 28. Bd4 {[%clk 0:00:02]}  Qg6 {[%clk 0:00:34]} 0-1


[Site "https://www.chess.com"]

[Event "Titled Tuesday Blitz June 21 Late 2022"]
[White "Souleidis, Georgios"]
[Black "Sarkar, Justin"]
[WhiteFideId "4206827"]
[BlackFideId "2010011"]
[WhiteElo "2401"]
[BlackElo "2020"]
[Result "1-0"]
[Round "07"]
[TimeControl "180+1"]
[Date "2022.06.22"]
[WhiteClock "0:00:12"]
[BlackClock "0:00:01"]

1. e4 {[%clk 0:03:00]}  e5 {[%clk 0:02:58]} 2. Nf3 {[%clk 0:03:00]}  Nc6 {[%clk 0:02:58]} 3. Nc3 {[%clk 0:02:58]}  Nf6 {[%clk 0:02:56]} 4. d4 {[%clk 0:02:58]}  exd4 {[%clk 0:02:53]} 5. Nd5 {[%clk 0:02:59]}  Nxd5 {[%clk 0:02:28]} 6. exd5 {[%clk 0:02:58]}  Nb4 {[%clk 0:02:27]} 7. Bc4 {[%clk 0:02:53]}  Bc5 {[%clk 0:02:17]} 8. a3 {[%clk 0:02:31]}  Na6 {[%clk 0:02:07]} 9. b4 {[%clk 0:02:27]}  Bb6 {[%clk 0:01:58]} 10. Qe2+ {[%clk 0:02:15]}  Qe7 {[%clk 0:01:56]} 11. Qxe7+ {[%clk 0:02:15]}  Kxe7 {[%clk 0:01:56]} 12. Bb2 {[%clk 0:02:13]}  Re8 {[%clk 0:01:16]} 13. O-O-O {[%clk 0:02:13]}  Kf8 {[%clk 0:01:08]} 14. Nxd4 {[%clk 0:02:06]}  d6 {[%clk 0:01:02]} 15. f3 {[%clk 0:01:57]}  Bd7 {[%clk 0:00:59]} 16. Rhe1 {[%clk 0:01:54]}  Rxe1 {[%clk 0:00:55]} 17. Rxe1 {[%clk 0:01:54]}  Re8 {[%clk 0:00:54]} 18. Rxe8+ {[%clk 0:01:53]}  Kxe8 {[%clk 0:00:54]} 19. Kd2 {[%clk 0:01:47]}  Nb8 {[%clk 0:00:53]} 20. g4 {[%clk 0:01:36]}  a5 {[%clk 0:00:48]} 21. h4 {[%clk 0:01:23]}  axb4 {[%clk 0:00:46]} 22. axb4 {[%clk 0:01:23]}  g6 {[%clk 0:00:43]} 23. Ne2 {[%clk 0:01:04]}  c5 {[%clk 0:00:28]} 24. b5 {[%clk 0:00:53]}  Ba5+ {[%clk 0:00:28]} 25. Ke3 {[%clk 0:00:52]}  Bc8 {[%clk 0:00:25]} 26. Ng3 {[%clk 0:00:48]}  Nd7 {[%clk 0:00:20]} 27. Ne4 {[%clk 0:00:46]}  Ke7 {[%clk 0:00:18]} 28. g5 {[%clk 0:00:40]}  Be1 {[%clk 0:00:13]} 29. Bf6+ {[%clk 0:00:34]}  Nxf6 {[%clk 0:00:07]} 30. gxf6+ {[%clk 0:00:34]}  Kd7 {[%clk 0:00:07]} 31. b6 {[%clk 0:00:34]}  Bxh4 {[%clk 0:00:05]} 32. Bb5+ {[%clk 0:00:35]}  Kd8 {[%clk 0:00:04]} 33. Nxd6 {[%clk 0:00:31]}  Bxf6 {[%clk 0:00:04]} 34. f4 {[%clk 0:00:18]}  h5 {[%clk 0:00:02]} 35. Kf3 {[%clk 0:00:17]}  h4 {[%clk 0:00:01]} 36. Nxf7+ {[%clk 0:00:13]}  Ke7 {[%clk 0:00:01]} 37. Ne5 {[%clk 0:00:13]}  h3 {[%clk 0:00:01]} 38. c4 {[%clk 0:00:12]}  Kd6 {[%clk 0:00:01]} 39. Nxg6 {[%clk 0:00:12]}  Bf5 {[%clk 0:00:01]} 40. Ne5 {[%clk 0:00:12]} 1-0


[Site "https://www.chess.com"]

[Event "Titled Tuesday Blitz June 21 Late 2022"]
[White "Svane, Rasmus"]
[Black "Le, Tuan Minh"]
[WhiteFideId "4657101"]
[BlackFideId "12401153"]
[WhiteElo "2674"]
[BlackElo "2530"]
[Result "1-0"]
[Round "07"]
[TimeControl "180+1"]
[Date "2022.06.21"]
[WhiteClock "0:00:18"]
[BlackClock "0:00:04"]

1. Nf3 {[%clk 0:03:00]}  d5 {[%clk 0:03:00]} 2. g3 {[%clk 0:03:01]}  Nf6 {[%clk 0:03:00]} 3. Bg2 {[%clk 0:03:01]}  Bg4 {[%clk 0:03:01]} 4. O-O {[%clk 0:03:01]}  e6 {[%clk 0:03:01]} 5. h3 {[%clk 0:03:02]}  Bh5 {[%clk 0:03:01]} 6. d4 {[%clk 0:03:02]}  c6 {[%clk 0:03:01]} 7. c4 {[%clk 0:03:03]}  Nbd7 {[%clk 0:03:01]} 8. cxd5 {[%clk 0:03:03]}  exd5 {[%clk 0:03:02]} 9. Ne5 {[%clk 0:03:04]}  Bg6 {[%clk 0:02:25]} 10. Nc3 {[%clk 0:03:03]}  Qb6 {[%clk 0:02:23]} 11. f4 {[%clk 0:01:42]}  Nxe5 {[%clk 0:01:53]} 12. fxe5 {[%clk 0:01:43]}  Nd7 {[%clk 0:01:53]} 13. e3 {[%clk 0:01:35]}  Be7 {[%clk 0:01:45]} 14. h4 {[%clk 0:01:28]}  h5 {[%clk 0:01:41]} 15. Bh3 {[%clk 0:01:27]}  Nf8 {[%clk 0:01:39]} 16. Bf5 {[%clk 0:01:21]}  Bxf5 {[%clk 0:01:36]} 17. Rxf5 {[%clk 0:01:22]}  g6 {[%clk 0:01:37]} 18. Rf2 {[%clk 0:01:14]}  Ne6 {[%clk 0:01:37]} 19. Qf3 {[%clk 0:01:09]}  Rf8 {[%clk 0:01:38]} 20. b3 {[%clk 0:01:03]}  O-O-O {[%clk 0:01:31]} 21. Qg2 {[%clk 0:01:02]}  Kb8 {[%clk 0:01:25]} 22. Bd2 {[%clk 0:01:02]}  g5 {[%clk 0:00:58]} 23. hxg5 {[%clk 0:01:01]}  Bxg5 {[%clk 0:00:58]} 24. Raf1 {[%clk 0:01:00]}  Qc7 {[%clk 0:00:57]} 25. Qh3 {[%clk 0:00:56]}  h4 {[%clk 0:00:53]} 26. gxh4 {[%clk 0:00:51]}  Bh6 {[%clk 0:00:53]} 27. Rg2 {[%clk 0:00:49]}  Qe7 {[%clk 0:00:51]} 28. Ne2 {[%clk 0:00:46]}  Rg8 {[%clk 0:00:50]} 29. Ng3 {[%clk 0:00:46]}  Qd7 {[%clk 0:00:45]} 30. Rff2 {[%clk 0:00:43]}  c5 {[%clk 0:00:40]} 31. Nf5 {[%clk 0:00:34]}  Rxg2+ {[%clk 0:00:38]} 32. Rxg2 {[%clk 0:00:35]}  Ng7 {[%clk 0:00:29]} 33. e6 {[%clk 0:00:29]}  Nxe6 {[%clk 0:00:20]} 34. Nxh6 {[%clk 0:00:28]}  cxd4 {[%clk 0:00:21]} 35. exd4 {[%clk 0:00:28]}  Qc6 {[%clk 0:00:20]} 36. Nf5 {[%clk 0:00:25]}  Ka8 {[%clk 0:00:20]} 37. h5 {[%clk 0:00:25]}  Qc2 {[%clk 0:00:21]} 38. h6 {[%clk 0:00:22]}  Nf8 {[%clk 0:00:10]} 39. h7 {[%clk 0:00:19]}  Ng6 {[%clk 0:00:05]} 40. Bg5 {[%clk 0:00:18]}  Rh8 {[%clk 0:00:04]} 41. Rxc2 {[%clk 0:00:18]} 1-0


[Site "https://www.chess.com"]